Cogmind - Beta 17 @@@ ROGUE MODE // 2026.06.27 @ 01:17:11 Player: OBLIQUE Result: Self-destructed Performance ------------- Evolutions (1) 500 Regions Visited (3) 600 Robots Destroyed (31) 155 Value Destroyed (447) 447 Prototype IDs (2) 40 Alien Tech Used (0) 0 Bonus (228) 228 TOTAL SCORE: 1970 Bonus ------- Follower Combat Kills 228 Cogmind --------- Core Integrity 351/400 Matter 281/300 Energy 160/160 System Corruption 0% Temperature Cool (0) Movement Rolling (80) Location -9/Materials Parts ------- > --- POWER (1) -------- Light Nuclear Core > --- PROPULSION (2) --- Wheel Armored Wheel > --- UTILITY (4) ------ Small Storage Unit Structural Scanner Improved Terrain Scanner Terrain Scan Processor > --- WEAPON (2) ------- Improved Medium Laser Improved Assault Rifle > --- INVENTORY (8) ---- Improved Aluminum Leg Carbon-fiber Leg Improved Heat Sink Improved Heat Sink Improved Assault Rifle Improved Assault Rifle Mining Claw Peak State ------------ > --- POWER ------------ Light Nuclear Core > --- PROPULSION ------- Wheel Wheel > --- UTILITY ---------- Improved Heat Sink Improved Heat Sink Small Storage Unit Structural Scanner > --- WEAPON ----------- Beamcaster Improved Assault Rifle > --- INVENTORY -------- Aluminum Leg Carbon-fiber Leg Heat Sink Weight Redist. System Structural Scanner Improved Terrain Scanner Terrain Scan Processor Tractor Beam [Rating: 22] Favorites ----------- Power Ion Engine Engine Ion Engine Power Core Light Nuclear Core Propulsion Compact Wheel Leg Improved Aluminum Leg Wheel Compact Wheel Utility Small Storage Unit Device Improved Heat Sink Storage Small Storage Unit Processor Targeting Computer Weapon Small Laser Energy Gun Small Laser Ballistic Gun Improved Assault Rifle Special Melee Weapon Datajack Build | -11 -10 -10 -9 ------- Run | Yrd Mat Min Mat Slots Evolved 2 | . . . 2 Power . | . . . . Propulsion . | . . . . Utility 2 | . . . 2 Weapon . | . . . . Parts Attached 33 | 8 3 10 12 Power 6 | 2 . 3 1 Engine 4 | 2 . 2 . Core 2 | . . 1 1 Reactor . | . . . . Propulsion 6 | 2 . 2 2 Treads . | . . . . Leg 1 | . . . 1 Wheel 5 | 2 . 2 1 Hover . | . . . . Flight . | . . . . Utility 10 | 2 1 1 6 Device 7 | 1 . 1 5 Storage 1 | 1 . . . Processor 2 | . 1 . 1 Hackware . | . . . . Protection . | . . . . Artifact . | . . . . Weapon 11 | 2 2 4 3 Energy Gun 8 | 2 1 4 1 Energy Cannon . | . . . . Ballistic Gun 2 | . . . 2 Ballistic Cannon . | . . . . Launcher . | . . . . Special Weapon . | . . . . Impact Weapon . | . . . . Slashing Weapon . | . . . . Piercing Weapon . | . . . . Special Melee Weapon 1 | . 1 . . Unidentified Prototypes 2 | . . . 2 Parts Lost 7 | . 3 3 1 Power 2 | . 1 1 . Propulsion 1 | . 1 . . Utility 1 | . . . 1 Weapon 3 | . 1 2 . Highest Loss Streak 2 | . 2 2 1 To Critical Strikes . | . . . . Average Backups 7 | 1 7 7 7 Power 1 | . 2 . . Propulsion . | . . . 2 Utility 3 | . 2 4 3 Weapon 1 | . 2 1 2 Tool/Special . | . . . . Unused Backups 9 | . . 2 7 Power . | . . . . Propulsion 2 | . . . 2 Utility 4 | . . 2 2 Weapon 3 | . . . 3 Tool/Special . | . . . . Average Slot Usage (%) 95 | . 99 89 99 Engine 7 | . 13 6 . Core 3 | . . 3 11 Wheel 24 | . 28 22 22 Device 9 | . 1 3 31 Storage 13 | . 14 14 11 Processor 9 | . 12 10 . Energy Gun 21 | . 21 27 14 Ballistic Gun 1 | . . . 7 Special Melee Weapon 2 | . 7 . . Peak Build Rating 22 | 7 8 16 22 Average Rating 10 | 5 7 9 19 On Entrance 7 | . 7 5 16 Avg Prop Armor Cover (%) . | . . . . Naked Turns . | . . . . Heaviest Build 21 | 13 13 17 21 Greatest Support 32 | 32 32 26 22 Greatest Overweight (x) 1 | . . . 1 Average Overweight (x) . | . . . . Largest Inventory Capacity 8 | 8 8 8 8 Average Capacity 7 | 6 8 8 8 Most Carried 8 | 3 8 8 8 Average Carried 7 | 1 7 7 7 Final Capacity 8 | 8 8 8 8 Final Carried 8 | 3 8 8 7 Class Distribution -------------------- 69% | Mutant 30% | Scavenger-Mutant Dominant Class ---------------- Mutant | -10/Materials Mutant | -10/Mines Scavenger-Mutant | -9/Materials Resources | -11 -10 -10 -9 ----------- Run | Yrd Mat Min Mat Matter Collected 595 | 280 50 110 155 Remotely 92 | 10 . . 82 Salvage Created 758 | 86 163 298 211 Parts 60 | 2 18 23 17 Haulers Intercepted 1 | . 1 . . Recyclers Shooed . | . . . . Parts Field Recycled . | . . . . Retrieved Matter . | . . . . Parts Self-Destructed . | . . . . Prevented . | . . . . Parts Restored . | . . . . Kills | -11 -10 -10 -9 ------- Run | Yrd Mat Min Mat Combat Hostiles Destroyed 22 | . 6 12 4 Guns 22 | . 6 12 4 Classes Destroyed 9 | 2 3 2 2 Worker 2 | . . 2 . Builder 1 | . . . 1 Tunneler 2 | 1 . 1 . Hauler 1 | . 1 . . Recycler 1 | 1 . . . Watcher 2 | . 2 . . Swarmer 17 | . 6 10 1 Grunt 2 | . . 2 . Sentry 3 | . . . 3 Best Kill Streak 6 | 2 6 5 3 Combat Bots Only 6 | . 6 5 2 Max Kills in Single Turn 2 | 1 2 2 1 Gunslinging 1 | . 1 1 . Exploded . | . . . . Melee . | . . . . Uniques/NPCs Destroyed . | . . . . Combat | -11 -10 -10 -9 -------- Run | Yrd Mat Min Mat Hostile Shots Fired 143 | . 33 65 45 Missed 41 | . 7 22 12 Hits 102 | . 26 43 33 Projectile 102 | . 26 43 33 Critical Strikes 1 | . . . 1 Damage Taken 1032 | . 239 422 371 Core 242 | . 66 127 49 Absorbed by Shields . | . . . . Core Remaining (%) 61 | 100 . 22 . Volleys Fired 86 | 5 21 41 19 Largest 2 | 2 2 2 2 Hottest 115 | 80 80 115 115 Shots Fired 169 | 10 42 82 35 Gun 169 | 10 42 82 35 Cannon . | . . . . Launcher . | . . . . Special . | . . . . Kinetic 13 | . . . 13 Thermal 149 | 10 42 75 22 Explosive . | . . . . Electromagnetic 7 | . . 7 . Robot Hit Streak 14 | 3 4 14 11 Robot Miss Streak 4 | 2 2 2 4 Penetration Max . | . . . . Secondary Targets 4 | . 2 2 . Max Gunslinging Chain 1 | . 1 1 . Shots Hit Robots 119 | 6 27 62 24 Core Hits 42 | 3 11 20 8 Critical Kills . | . . . . Critical Parts Destroyed . | . . . . Critical Strikes 5 | . . 3 2 Burn 5 | . . 3 2 Melee Attacks 1 | . 1 . . Impact . | . . . . Slashing . | . . . . Piercing . | . . . . Sneak Attacks . | . . . . Combat Hostiles . | . . . . Follow-up Attacks . | . . . . Damage Inflicted 1625 | 77 302 771 475 Guns 1625 | 77 302 771 475 Cannons . | . . . . Explosions . | . . . . Melee . | . . . . Ramming . | . . . . Kinetic 173 | . . . 173 Thermal 1385 | 77 302 704 302 Explosive . | . . . . Electromagnetic 67 | . . 67 . Impact . | . . . . Slashing . | . . . . Piercing . | . . . . Highest Corruption 1 | . 1 1 . Average Corruption 1 | . 1 1 . Corruption Purged . | . . . . Corruption Blocked . | . . . . Effects 8 | . 5 3 . Message Errors 1 | . 1 . . Matter Fused 2 | . 1 1 . Energy Discharges 1 | . . 1 . Parts Rejected 1 | . 1 . . Data Loss (minor) 1 | . . 1 . Data Loss (major) 1 | . 1 . . Misfires 1 | . 1 . . Overload Shots . | . . . . Overflow Damage . | . . . . Projectiles . | . . . . Explosions . | . . . . Melee . | . . . . Knockbacks . | . . . . Impact . | . . . . Kinetic . | . . . . Secondary . | . . . . Self-Inflicted Damage . | . . . . Shots . | . . . . Rammed . | . . . . Targets Rammed . | . . . . Kicked . | . . . . Crushed . | . . . . Highest Temperature 247 | 90 162 247 6 Average Temperature 70 | 46 58 81 4 Received Heat Transfer 240 | . 42 117 81 Siege Activations . | . . . . Martial Activations . | . . . . Shielding Activations . | . . . . Robots Disrupted . | . . . . Combat Hostiles . | . . . . Robots Corrupted . | . . . . Combat Hostiles . | . . . . Parts Fried . | . . . . Impact Corruptions . | . . . . Robots Melted . | . . . . Combat Hostiles . | . . . . Parts Melted 8 | 1 3 3 1 Heat Transferred 3514 | 175 675 1948 716 Parts Sabotaged . | . . . . Parts Stolen . | . . . . Parts Stripped . | . . . . Power Chain Reactions . | . . . . Alert | -11 -10 -10 -9 ------- Run | Yrd Mat Min Mat Maximum Alert Level 1 | . . 1 . Low Security (%) 93 | 100 100 80 100 Level 1 6 | . . 19 . Level 2 . | . . . . Level 3 . | . . . . Level 4 . | . . . . Level 5 . | . . . . High Security . | . . . . Max Security . | . . . . Peak Influence 227 | 10 130 227 190 Initial 64 | . . . 64 Average 86 | 1 24 141 132 Influence Increases 1097 | 10 214 525 348 Destroy 0b10 Robot/C 700 | . 120 360 220 Destroy 0b10 Robot/NC 45 | 10 15 15 5 Destroy Leader 156 | . 26 60 70 Allied During Kill 48 | . . 15 33 Successful Hack 71 | . 53 . 18 Destroy Structure 2 | . . . 2 Lose Combat Pursuer 75 | . . 75 . Influence Decreases 973 | 10 214 360 389 Entered New Map 101 | . . . 101 Time Decay 771 | 10 213 310 238 Lost Part 41 | . 1 30 10 Lost Ally 60 | . . 20 40 Squads Dispatched 2 | . 1 1 . Investigation . | . . . . Extermination . | . . . . Reinforcement 1 | . 1 . . Assault 1 | . . 1 . Garrison . | . . . . Intercept . | . . . . Searches Triggered . | . . . . Construction Impeded . | . . . . Haulers Reinforced . | . . . . Active Scanning Responses . | . . . . Cargo Convoy Interrupts . | . . . . Stealth | -11 -10 -10 -9 --------- Run | Yrd Mat Min Mat Distress Signals 2 | . . 1 1 Communications Jammed . | . . . . Distress Signals . | . . . . Times Spotted 48 | . 16 20 12 Peak Tracking Total 7 | . 7 5 4 Tactical Retreats 3 | . . 3 . Traps | -11 -10 -10 -9 ------- Run | Yrd Mat Min Mat Traps Triggered 2 | . 2 . . Indirectly . | . . . . Trap Hack Attempts 8 | . 8 . . Triggered . | . . . . Disarmed . | . . . . Reprogrammed 3 | . 3 . . Reused . | . . . . Traps Extracted . | . . . . Installed . | . . . . Triggered . | . . . . Machines | -11 -10 -10 -9 ---------- Run | Yrd Mat Min Mat Machines Disabled . | . . . . Max in Single Turn . | . . . . Machines Repaired . | . . . . Machines Dismantled . | . . . . Machines Sabotaged . | . . . . Overloaded Fab Kills . | . . . . Hacking | -11 -10 -10 -9 --------- Run | Yrd Mat Min Mat Machines Accessed 11 | . 7 . 4 Terminals 10 | . 7 . 3 Fabricators . | . . . . Repair Stations . | . . . . Recycling Units . | . . . . Scanalyzers 1 | . . . 1 Garrison Access . | . . . . Total Hacks 49 | . 30 . 19 Successful 30 | . 16 . 14 Failed 18 | . 14 . 4 Catastrophic 1 | . 1 . . Database Lockouts 1 | . . . 1 Manual 35 | . 22 . 13 Terminals 44 | . 30 . 14 Fabricators . | . . . . Repair Stations . | . . . . Recycling Units . | . . . . Scanalyzers 5 | . . . 5 Garrison Access . | . . . . Terminal Hacks 16 | . 10 . 6 Robot Analysis 5 | . 2 . 3 Emergency Access Points 1 | . 1 . . Terminal Index 2 | . 1 . 1 Garrison Index 1 | . . . 1 Locate Traps 3 | . 3 . . Patrol Status 2 | . 1 . 1 Zone Layout 2 | . 2 . . Fabricator Hacks . | . . . . Repair Station Hacks . | . . . . Recycling Unit Hacks . | . . . . Scanalyzer 4 | . . . 4 Insert Component 2 | . . . 2 Analyze 1 | . . . 1 Retrieve Study 1 | . . . 1 Garrison Access Hacks . | . . . . Unauthorized Hacks 10 | . 6 . 4 Terminals 10 | . 6 . 4 Track 1 | . . . 1 Assimilate 4 | . 3 . 1 Botnet 3 | . 2 . 1 Operators 2 | . 1 . 1 Fabricators . | . . . . Repair Stations . | . . . . Recycling Units . | . . . . Scanalyzers . | . . . . Garrison Access . | . . . . Data Cores Recovered . | . . . . Used . | . . . . Hacking Detections 10 | . 7 . 3 Full Trace Events . | . . . . Feedback Events . | . . . . Feedback Blocked . | . . . . Robot Schematics Acquired . | . . . . Robots Built . | . . . . Authchips . | . . . . Time . | . . . . Total Robot Build Rating . | . . . . Part Schematics Acquired 1 | . . . 1 Parts Built . | . . . . Authchips . | . . . . Time . | . . . . Total Part Build Rating . | . . . . Part Studies Acquired 1 | . . . 1 Parts Repaired . | . . . . Time . | . . . . Parts Recycled . | . . . . Recycled Matter . | . . . . Retrieved Matter . | . . . . Retrieved Components . | . . . . Parts Scanalyzed 1 | . . . 1 Part Schematics Acquired 1 | . . . 1 Parts Damaged . | . . . . Bothacking | -11 -10 -10 -9 ------------ Run | Yrd Mat Min Mat Used RIF Installer . | . . . . Robots Hacked 1 | . 1 . . Non-combat 1 | . 1 . . Combat . | . . . . Robot Hacks Applied 1 | . 1 . . parse_system 1 | . 1 . . Relay Couplers Released . | . . . . Fabnet Peak Effective % . | . . . . Robots Rewired . | . . . . Allies Hacked . | . . . . Hacks Repelled . | . . . . Allies | -11 -10 -10 -9 -------- Run | Yrd Mat Min Mat Total Allies 6 | . 1 4 1 Largest Group 4 | . 1 3 4 Highest-Rated Group 50 | . 10 40 50 Highest-Rated Ally 31 | . 10 31 16 Total Orders 2 | . . . 2 STAY 1 | . . . 1 FOLLOW 1 | . . . 1 Ally Attacks 73 | . . 34 39 Total Damage 790 | . . 398 392 Kills 14 | . . 6 8 Allies Corrupted . | . . . . Allies Melted . | . . . . Intel | -11 -10 -10 -9 ------- Run | Yrd Mat Min Mat Active Infowar (turns) 516 | . . . 516 Terrain 14 | . . . 14 Structural 516 | . . . 516 Robot Analysis Total 5 | . 2 . 3 Derelict Logs Recovered 1 | . . 1 . Drone Launches . | . . . . Drone Recoveries . | . . . . Exploration | -11 -10 -10 -9 ------------- Run | Yrd Mat Min Mat Turns Passed 2375 | 93 972 794 516 Spaces Moved 1772 | 65 634 631 442 Core 1 | 1 . . . Treads . | . . . . Legs . | . . . . Wheels 1771 | 64 634 631 442 Hover . | . . . . Flight . | . . . . Fastest Speed 50 | 50 100 80 80 Average Speed 92 | 99 100 88 84 Slowest Speed 105 | 100 100 100 105 Overloaded Moves . | . . . . Propulsion Burnouts . | . . . . Robots Hopped . | . . . . Potential Cave-ins . | . . . . Cave-ins Triggered . | . . . . Exploration Rate (%) 56 | 3 89 99 33 Regions Visited 3 Branch Regions 1 Pre-discovered Areas 1 | . . 1 . Known Exits Taken . | . . . . Unknown Exits Taken 3 | 1 1 1 . Scrap Searched 1 | . . 1 . Spaces Dug . | . . . . Terrain Destroyed . | . . . . Melee . | . . . . Projectile . | . . . . AOE . | . . . . Terrain Rammed . | . . . . Walls Destroyed . | . . . . Machines Disabled . | . . . . Actions | -11 -10 -10 -9 --------- Run | Yrd Mat Min Mat Total 2349 | 79 931 786 553 Wait 403 | . 255 90 58 Move 1769 | 64 633 630 442 Hop . | . . . . Pick Up 20 | 2 5 7 6 Fast Attach 17 | 7 3 3 4 Attach 9 | . . 5 4 Detach 3 | . 1 1 1 Swap 12 | 1 2 3 6 Drop 21 | . 2 6 13 Fire 86 | 5 21 41 19 Melee 1 | . 1 . . Ram . | . . . . Kick . | . . . . Crush . | . . . . Escape Stasis . | . . . . Rewire . | . . . . Trap 8 | . 8 . . Miscellaneous . | . . . . Route ------- -11/Scrapyard -10/Materials (discovered 5 exits: *Mat x3 / [*Min] / [*Sub]) -10/Mines (discovered 3 exits: *Mat x2 / [*Sub]) -9/Materials (discovered 1 exit: [*Mat]) History --------- Turn | Location | Event 20 | -11/Scrapyard | Discovered new exit (range 16) 94 | -11/Scrapyard | Entered Materials 339 | -10/Materials | Build established: Mutant 354 | -10/Materials | Discovered new exit (range 16) 476 | -10/Materials | Discovered new exit (range 12) 862 | -10/Materials | Discovered new exit (range 10) 969 | -10/Materials | Discovered new exit (range 8) 1047 | -10/Materials | Discovered new exit (range 14) 1066 | -10/Materials | Entered Mines 1144 | -10/Mines | Discovered new exit (range 5) 1223 | -10/Mines | Core integrity fell below 50% 1333 | -10/Mines | Discovered new exit (range 7) 1334 | -10/Mines | Met a Derelict testing a Signal Generator 1670 | -10/Mines | Learned location of Zion (-6) 1704 | -10/Mines | Discovered new exit (range 9) 1718 | -10/Mines | Assisted by bots powering up and referring to "LRC-V3" 1860 | -10/Mines | Entered Materials 1860 | -9/Materials | Accompanied by 3 allies 1860 | -9/Materials | Evolved 2 slots: Utility x2 1920 | -9/Materials | Build established: Scavenger-Mutant 2242 | -9/Materials | Central database locked down 2244 | -9/Materials | Discovered new exit (range 16) 2376 | -9/Materials | Self-destructed Last Messages --------------- 02319_ Y-45 Defender suffers critical hit (Burn). 02333_ Tractor Beam destroyed. 02334_ Y-45 Defender destroyed. 02338_ Acquired 22 matter. 02342_ Dropped Wheel+. 02343_ Acquired Unknown Leg. 02343_ Identified Imp. Aluminum Leg. 02344_ Dropped Imp. Aluminum Leg. 02346_ Acquired Wheel+. 02348_ Dropped Aluminum Leg. 02348_ Acquired Imp. Aluminum Leg. 02349_ Connecting with Terminal... 02351_ Acquired 20 matter. 02360_ Dropped Imp. Assault Rifle. 02365_ Acquired Faulty Imp. Assault Rifle. 02369_ Acquired 11 matter. 02376_ Connecting with Terminal... 02376_ Dropped Faulty Imp. Assault Rifle. 02376_ Connecting with Terminal... Map ----- +----------------------------------------------------+ | ????????????????????????????? | | ????????????????????????????? | | ????????????????????????????? | | ????????????????????????????? | | ????????????????????????????? | | ????????????????????????????? | | ????????????????????????????? | | ?????????? ???????????????? | | ?????????? ##???????????? | | ?????????? ##???????????? | | ?????????" # ???????????? | | ????????"" # ???????????? | | ???????""" # ?? ? ? ?? ?? | | ???????^ # ???? ??????? | | ??????? # ???? ??"???# | | ???????? + ?? ? "?????? | | ???????? # ??? """???? | | ? # # ???? """?? ? | | ? ###+#### # ???? ""???? | | ? # # # ???? ????? | | ? # # # ???? ????? | | ? # """ + # ??? # | | ? # """ # ##???##/###### | | # """ # ###??## # = # | | ### + ####### # T # | | + # ####### # @ # | | ### # *#= # | | ##* "" # [+ !![# | | ## Y" # ####### ![ # | | ## "" ############### ![ # | | ## ##########???## # | | ##########???????????##### # | | ############???????#??####### | | ###????????????#??#??????#### | | #??????????#??????????#?????? | | #??????????????????#????????? | | #???????????????????????????? | | #???????????????????????????? | | #???????????#???????#?#?????? | | #?????????????????????#?????? | | #??????????????????????????#? | | #???????????????????????????? | | #?????????????????????????#?? | | ###############?????????????? | | ###############?????????????? | | ##?????????????? | | < ##?????????????? | | ##?????????????? | | ###############?????????????? | | ###############?????????????? | +----------------------------------------------------+ Best States ------------- Heat Dissipation 56 Energy Generation 14 Energy Capacity 250 Matter Stores 300 Matter Capacity 300 Sight Range 16 Terrain Scan Range 16 Terrain Scan Density 85 Evasion (%) 44 Targeting Accuracy 5 Item Schematics ----------------- Imp. Terrain Scanner | -9/Materials | Scanalyzed Robot Schematics ------------------ None Fabricated ------------ Nothing Repaired ---------- Nothing Studied --------- Wheel | -9/Materials | Hacked Alien Tech Used ----------------- None Achievements -------------- None Challenges ------------ None Game ------ Seed ScrapoidLightpackGutpuncher Manual? 0 Play Time 00:26:52 Cumulative 115.9 hours Start 2026.06.26 @ 19:14:57 End 2026.06.27 @ 01:17:11 Sessions 7 Manual Loads 0 Difficulty Rogue Special Mode None Game No. 71 Rogue 71 Adventurer 0 Explorer 0 Win Type - Total 1 Types 1/0/0/0/0/0/0/0/0/0 Lore% 60 Gallery% 51 Achievement% 46 Wizard Run 0 Options --------- Layout 1 ASCII 0 Keyboard 0 Movement Numpad Keybinds 0 Fullscreen 1 Font 24/Smallcaps Map View 50x35 Zoom Use 0% Tactical HUD 1 Map Filters NONE Filters NONE Steam 1 RUN: b005e6ea-c490-4bc8-a0d5-64a09ccdc7ed